bitfinex/quotes_BTCUSD_20220109
["timestamp","ask_amount","ask_price","bid_price","bid_amount"]
[1641749039533,0.486406,42067.0,42060.0,0.059439]
[1641749039929,0.500406,42067.0,42062.0,0.00021423]
[1641749040132,0.500406,42067.0,42063.0,0.059437]
[1641749040982,0.500406,42067.0,42064.0,0.26757467]
[1641749041179,0.400406,42067.0,42064.0,0.26757467]
[1641749041479,0.26380827,42068.0,42065.0,0.059433]
[1641749041880,0.014,42067.0,42065.0,0.059433]
[1641749042683,0.386406,42066.0,42064.0,0.26778101]
[1641749042884,0.014,42067.0,42064.0,0.25888701]
[1641749043281,0.26380827,42068.0,42064.0,0.25888701]
[1641749043483,0.26380827,42068.0,42065.0,0.059434]
[1641749043682,0.26255887,42068.0,42065.0,0.059434]
[1641749043883,0.31155887,42068.0,42065.0,0.059434]
[1641749044722,0.31155887,42068.0,42065.0,0.07132]
[1641749045124,0.26255887,42068.0,42065.0,0.07132]
[1641749045623,0.26255887,42068.0,42067.0,0.49873339]
[1641749046022,0.27155887,42068.0,42067.0,0.49873339]
[1641749047227,0.26255887,42068.0,42067.0,0.118843]
[1641749048026,0.27155887,42068.0,42067.0,0.118843]
[1641749048478,0.00054482,42074.0,42068.0,0.53411774]
[1641749048675,0.00054482,42074.0,42070.0,0.18540365]
[1641749048873,0.00054482,42074.0,42071.0,0.0475]
[1641749049075,0.00054482,42074.0,42071.0,0.13911559]
[1641749049272,0.00054482,42074.0,42073.0,0.35301459]
[1641749049473,0.00054482,42074.0,42073.0,0.40051459]
[1641749050078,0.01954482,42074.0,42073.0,0.40051459]
[1641749050274,0.019,42074.0,42073.0,0.40051459]
[1641749051278,0.33476018,42075.0,42074.0,1.159409]
[1641749051477,0.33476018,42075.0,42074.0,1.593315]
[1641749052077,0.34376018,42075.0,42074.0,0.493315]
[1641749052529,0.009,42075.0,42074.0,0.543315]
[1641749052730,0.009,42075.0,42074.0,0.593315]
[1641749053131,0.00019059,42077.0,42074.0,0.493315]
[1641749053334,0.00018694,42077.0,42075.0,0.088409]
[1641749053532,0.00018694,42077.0,42075.0,0.135909]
[1641749053931,0.01718694,42077.0,42075.0,0.140909]
[1641749054332,0.017,42077.0,42075.0,0.140909]
[1641749054932,0.017,42077.0,42074.0,7.375e-05]
[1641749055133,0.017,42077.0,42075.0,0.0475]
[1641749055333,1.01209499,42076.0,42075.0,0.059383]
[1641749055534,0.53690199,42076.0,42073.0,0.017822]
[1641749055733,0.53690199,42076.0,42074.0,0.0475]
[1641749055982,0.53690199,42076.0,42075.0,0.84505234]
[1641749056178,9.833e-05,42079.0,42075.0,0.29255234]
[1641749056379,9.833e-05,42079.0,42076.0,0.05939793]
[1641749056581,0.8042302,42082.0,42077.0,0.0475]
[1641749056879,0.3291072,42082.0,42080.0,0.00129177]
[1641749057080,0.90530379,42088.0,42082.0,1.1]
[1641749057279,0.90530379,42088.0,42083.0,0.0475]
[1641749057479,0.43024779,42088.0,42084.0,0.05938286]
[1641749057680,0.43024779,42088.0,42085.0,0.0475]
[1641749057879,0.43024779,42096.0,42087.0,0.386281]
[1641749058081,0.43024779,42096.0,42091.0,0.059383]
[1641749058280,0.43024779,42096.0,42092.0,0.433712]
[1641749058484,0.42384779,42096.0,42095.0,0.386181]
[1641749058681,0.1,42101.0,42095.0,0.386181]
[1641749058682,0.1,42101.0,42095.0,0.533681]
[1641749059081,0.1,42101.0,42096.0,0.32492827]
[1641749059382,0.1,42101.0,42097.0,0.0475]
[1641749059733,0.1,42101.0,42098.0,0.059375]
[1641749060034,0.1,42101.0,42099.0,0.7489709]
[1641749060035,0.11119415,42101.0,42099.0,0.7489709]
[1641749060235,0.11119415,42101.0,42100.0,0.29888917]
[1641749060432,0.11119415,42101.0,42100.0,0.73251317]
[1641749061037,0.111,42101.0,42100.0,0.73251317]
[1641749061235,0.111,42101.0,42100.0,0.98209317]
[1641749061432,0.1,42101.0,42100.0,0.98209317]
[1641749062034,0.1,42101.0,42100.0,0.98909317]
[1641749062239,0.1,42101.0,42100.0,0.73951317]
[1641749062435,0.1,42101.0,42100.0,0.440624]
[1641749063235,0.1,42101.0,42100.0,0.433624]
[1641749064087,0.1,42101.0,42100.0,0.436624]
[1641749064288,0.1,42101.0,42100.0,0.0505]
[1641749064489,1.586405,42101.0,42100.0,0.003]
[1641749064888,0.5876642,42101.0,42100.0,0.003]
[1641749065488,0.5876642,42101.0,42093.0,0.118774]
[1641749065688,0.1012592,42101.0,42093.0,0.118774]
[1641749065889,0.1,42094.0,42093.0,0.118774]
[1641749066091,0.1,42101.0,42093.0,0.504969]
[1641749066292,0.1,42101.0,42093.0,0.118774]
[1641749066692,0.00018677,42099.0,42093.0,0.118774]
[1641749066892,0.00018677,42099.0,42094.0,0.386186]
[1641749067530,0.0001867,42099.0,42095.0,0.34958379]
[1641749067734,0.0001867,42099.0,42096.0,0.386167]
[1641749068131,0.1,42097.0,42096.0,0.44555]
[1641749068532,0.1,42097.0,42095.0,0.006]
[1641749068732,0.386405,42096.0,42095.0,0.006]
[1641749069132,0.81235402,42096.0,42095.0,0.006]
[1641749069333,0.71235402,42096.0,42083.0,0.61565465]
[1641749069534,0.1,42088.0,42085.0,0.059397]
[1641749069733,0.32594902,42096.0,42086.0,0.386272]
[1641749069934,0.32594902,42096.0,42086.0,0.29233419]
[1641749069935,0.1,42089.0,42086.0,0.29233419]
[1641749070133,0.1,42089.0,42087.0,0.38626]
[1641749070735,0.1,42089.0,42088.0,0.93915702]
[1641749070976,0.1,42089.0,42088.0,1.155041]
[1641749071378,0.00018731,42090.0,42088.0,1.71302315]
[1641749071579,0.00018731,42090.0,42089.0,1.80728318]
[1641749071777,0.09993644,42096.0,42090.0,1.04406277]
[1641749071976,0.09993644,42096.0,42091.0,0.38622]
[1641749072177,0.09993644,42096.0,42093.0,0.059382]
[1641749072375,0.09993644,42096.0,42094.0,0.386189]
[1641749072575,0.09993644,42096.0,42094.0,0.445573]
[1641749073577,0.09993644,42096.0,42092.0,0.118763]
[1641749074283,0.09993644,42096.0,42092.0,0.125763]
[1641749074727,0.00010182,42098.0,42095.0,0.059385]
[1641749075126,0.09993644,42097.0,42095.0,0.059385]
[1641749076025,0.09993644,42097.0,42095.0,0.066385]
[1641749077226,0.09993644,42097.0,42095.0,0.059385]
[1641749078579,0.39650748,42097.0,42095.0,0.059385]
[1641749079275,0.09993644,42097.0,42095.0,0.059385]
[1641749080074,0.10893644,42097.0,42095.0,0.063385]
[1641749080979,0.09993644,42096.0,42095.0,0.063385]
[1641749081178,0.09993644,42096.0,42095.0,0.12276399]
[1641749081380,0.00018489,42098.0,42095.0,0.11876399]
[1641749081578,0.00018489,42098.0,42096.0,0.118756]
[1641749081879,0.00018489,42098.0,42096.0,0.40995884]
[1641749082082,0.01318489,42098.0,42096.0,0.126756]
[1641749082324,0.013,42098.0,42096.0,0.42223803]
[1641749082523,0.013,42098.0,42096.0,0.57223803]
[1641749083123,0.09993644,42097.0,42096.0,0.126756]
[1641749083325,0.09993644,42097.0,42096.0,0.118756]
[1641749084222,0.10893644,42097.0,42096.0,0.131756]
[1641749085423,0.09993644,42097.0,42096.0,0.118756]
[1641749086079,0.09993644,42097.0,42096.0,0.126756]
[1641749087282,0.09993644,42097.0,42096.0,0.118756]
[1641749088082,0.09993644,42097.0,42096.0,0.126756]
[1641749088681,0.00108,42098.0,42096.0,0.126756]
[1641749088882,0.00108,42098.0,42096.0,0.1861349]
[1641749089282,0.00108,42098.0,42096.0,0.1781349]
[1641749089483,0.00048,42098.0,42096.0,0.2281349]
[1641749089727,0.00012,42098.0,42096.0,0.1781349]
[1641749090030,0.09993644,42097.0,42096.0,0.1881349]
[1641749090227,0.09993644,42097.0,42096.0,0.4881349]
[1641749090625,0.09993644,42097.0,42096.0,0.1881349]
[1641749090829,0.09993644,42097.0,42096.0,0.47825601]
[1641749091425,0.09993644,42097.0,42096.0,0.46825601]
[1641749092227,0.11193644,42097.0,42096.0,0.1881349]
[1641749092427,0.11193644,42097.0,42096.0,0.128756]
[1641749093477,0.09993644,42097.0,42096.0,0.118756]
[1641749094179,0.11093644,42097.0,42096.0,0.128756]
[1641749095478,0.09993644,42097.0,42096.0,0.118756]
[1641749095880,0.09993644,42097.0,42095.0,0.11876]
[1641749096081,0.10893644,42097.0,42096.0,0.011]
[1641749097327,0.09993644,42097.0,42095.0,0.09676]
[1641749098126,0.11093644,42097.0,42095.0,0.09676]
[1641749099427,0.09993644,42097.0,42095.0,0.09676]
[1641749099827,0.10089644,42097.0,42095.0,0.09676]
[1641749100233,0.10101644,42097.0,42095.0,0.09776]
[1641749101979,0.10101644,42097.0,42095.0,0.09676]
[1641749102177,0.10101644,42097.0,42095.0,0.10076]
[1641749104930,0.10101644,42097.0,42095.0,0.09676]
[1641749105229,0.04993644,42096.0,42095.0,0.09676]
[1641749105633,0.05116766,42096.0,42094.0,0.00020658]
[1641749105828,0.05116766,42096.0,42094.0,0.00041316]
[1641749105829,1.286367,42095.0,42094.0,0.00041316]
[1641749106029,1.486367,42095.0,42094.0,0.00020658]
[1641749106230,1.636367,42095.0,42094.0,0.00020658]
[1641749106431,0.34263021,42088.0,42081.0,0.80120761]
[1641749106632,0.04993644,42082.0,42081.0,0.80120761]
[1641749106931,0.04993644,42082.0,42080.0,0.15]
[1641749107432,0.04940708,42081.0,42080.0,0.15]
[1641749108481,0.28897381,42081.0,42080.0,0.15]
[1641749108678,0.29022944,42081.0,42080.0,0.15]
[1641749109079,0.67659644,42081.0,42080.0,0.15]
[1641749110179,0.98501298,42081.0,42080.0,0.15]
[1641749110985,0.67659644,42081.0,42078.0,0.00021419]
[1641749111183,0.83060644,42079.0,42078.0,0.00021419]
[1641749111680,0.93060644,42079.0,42078.0,0.00021419]
[1641749111881,0.29022944,42081.0,42078.0,0.00021419]
[1641749112082,0.05066271,42081.0,42078.0,0.05962419]
[1641749112333,0.05066271,42081.0,42078.0,0.00021419]
[1641749112525,0.05066271,42081.0,42077.0,0.059414]
[1641749112726,0.04940708,42078.0,42077.0,0.059414]
[1641749113125,0.04940708,42078.0,42076.0,0.00021004]
[1641749113727,0.04940708,42078.0,42077.0,0.059415]
[1641749114026,0.39940708,42078.0,42077.0,0.059415]
[1641749114427,0.04940708,42078.0,42077.0,0.059415]
[1641749115127,0.04940708,42078.0,42077.0,0.054415]
[1641749115526,0.34950471,42078.0,42077.0,0.054415]
[1641749115728,0.34950471,42078.0,42075.0,0.00041254]
[1641749115978,0.34950471,42078.0,42075.0,0.00020627]
[1641749116376,0.34950471,42078.0,42075.0,0.05125744]
[1641749116578,0.34950471,42078.0,42075.0,0.00020627]
[1641749116579,0.49950471,42078.0,42075.0,0.00020627]
[1641749116776,0.00122915,42076.0,42075.0,0.00020627]
[1641749116978,0.62299807,42076.0,42074.0,0.00020642]
[1641749117177,0.64617932,42075.0,42074.0,0.00020642]
[1641749117377,0.7819534,42075.0,42074.0,0.00020642]
[1641749117577,0.9319534,42075.0,42074.0,0.00020642]
[1641749117977,0.9319534,42075.0,42072.0,0.00020664]
[1641749118178,0.386367,42074.0,42072.0,0.00020664]
[1641749118376,0.16463654,42075.0,42072.0,0.05962764]
[1641749118580,0.16340708,42075.0,42072.0,0.05962764]
[1641749119378,0.14940708,42075.0,42072.0,0.05962764]
[1641749119579,0.04940708,42075.0,42072.0,0.05962764]
[1641749120231,0.06040708,42075.0,42072.0,0.059421]
[1641749121531,0.04940708,42075.0,42072.0,0.059421]
[1641749122133,0.06340708,42075.0,42072.0,0.059421]
[1641749123577,0.04940708,42075.0,42073.0,0.05086654]
[1641749123776,0.33470815,42074.0,42073.0,0.05086654]
[1641749123980,0.04940708,42075.0,42073.0,0.05086654]
[1641749124179,0.05940708,42075.0,42073.0,0.004]
[1641749125379,0.04940708,42075.0,42072.0,0.00020663]
[1641749125579,1.04940708,42075.0,42073.0,0.05942]
[1641749126279,1.06240708,42075.0,42073.0,0.05942]
[1641749127532,1.04940708,42075.0,42073.0,0.05942]
[1641749128128,1.06240708,42075.0,42073.0,0.05942]
[1641749129530,1.04940708,42075.0,42073.0,0.05942]
[1641749129931,1.04940708,42075.0,42074.0,0.05942]
[1641749130332,1.06740708,42075.0,42074.0,0.05942]
[1641749130732,1.06824708,42075.0,42074.0,0.05942]
[1641749130983,1.06836708,42075.0,42074.0,0.05942]
[1641749131187,1.06836708,42075.0,42073.0,0.004]
[1641749131384,1.06836708,42075.0,42073.0,0.06342]
[1641749131587,1.04536708,42075.0,42073.0,0.05942]
[1641749131788,1.04536708,42075.0,42074.0,0.54015053]
[1641749132386,1.07136708,42075.0,42074.0,0.54015053]
[1641749133385,1.04536708,42075.0,42074.0,0.54015053]
[1641749134189,1.05836708,42075.0,42074.0,0.54015053]
[1641749135834,1.04536708,42075.0,42074.0,0.54015053]
[1641749136237,1.05736708,42075.0,42074.0,0.54015053]
[1641749138240,1.06936708,42075.0,42074.0,0.54015053]
[1641749139478,1.04536708,42075.0,42074.0,0.54015053]
[1641749140287,1.05836708,42075.0,42074.0,0.54715053]
[1641749140981,1.05836708,42075.0,42074.0,0.96860539]
[1641749140982,1.01396,42075.0,42074.0,0.96860539]
[1641749141382,0.538766,42075.0,42074.0,2.16389584]
[1641749141580,0.525766,42075.0,42074.0,2.0560629]
[1641749141880,0.525766,42075.0,42074.0,2.3538622]
[1641749142081,0.050567,42075.0,42074.0,0.81863232]
[1641749142328,0.050567,42075.0,42074.0,0.87963232]
[1641749142724,0.050567,42075.0,42074.0,0.83184187]
[1641749142925,0.050567,42075.0,42074.0,0.65806453]
[1641749143325,0.050567,42075.0,42074.0,0.95324083]
[1641749143525,0.050567,42075.0,42074.0,0.94224083]
[1641749144326,0.050567,42075.0,42074.0,0.95424083]
[1641749145527,0.050567,42075.0,42074.0,1.14224083]
[1641749145828,0.050567,42075.0,42074.0,1.19004804]
[1641749146099,0.051887,42075.0,42074.0,1.19004804]
[1641749146298,0.052007,42075.0,42074.0,1.20304804]
[1641749147501,0.052007,42075.0,42074.0,1.19004804]
[1641749148301,0.052007,42075.0,42074.0,1.20204804]
[1641749149504,0.052007,42075.0,42074.0,1.19004804]
[1641749149729,0.052007,42075.0,42074.0,1.04004804]
[1641749150330,0.052007,42075.0,42074.0,1.05204804]
[1641749151733,0.052007,42075.0,42074.0,1.04004804]
[1641749152333,0.052007,42075.0,42074.0,1.11398974]
[1641749152932,0.00053876,42081.0,42075.0,1.1]
[1641749153134,0.00053876,42081.0,42077.0,0.17816772]
[1641749153335,1.04440708,42090.0,42077.0,0.17816772]
[1641749153336,1.0,42090.0,42080.0,1.1]
[1641749153590,0.99,42090.0,42081.0,0.0475]
[1641749153790,0.99,42090.0,42082.0,0.40689533]
[1641749153989,0.99,42090.0,42083.0,0.0475]
[1641749154191,0.99,42090.0,42083.0,0.09530721]
[1641749154388,0.66571817,42092.0,42086.0,0.059393]
[1641749154590,0.00121669,42094.0,42088.0,0.0593912]
[1641749154792,0.04440708,42090.0,42089.0,0.118785]
[1641749155793,0.04440708,42090.0,42089.0,0.178178]
[1641749156395,0.04440708,42090.0,42089.0,0.183178]
[1641749156797,0.04440708,42090.0,42089.0,0.47804587]
[1641749157244,0.04440708,42095.0,42089.0,0.85590325]
[1641749157449,0.04440708,42095.0,42093.0,0.05938]
[1641749157642,0.04440708,42095.0,42094.0,0.41738967]
[1641749158045,0.04440708,42095.0,42094.0,0.118766]
[1641749158243,0.04440708,42095.0,42094.0,0.122766]
[1641749158444,0.00018564,42097.0,42094.0,0.41850168]
[1641749158646,0.00018564,42097.0,42094.0,0.46850168]
[1641749158846,0.00018564,42097.0,42094.0,0.172766]
[1641749159043,0.04440708,42096.0,42094.0,0.47115997]
[1641749159245,0.04440708,42096.0,42095.0,0.59797921]
[1641749159446,0.04440708,42096.0,42095.0,0.29797921]
[1641749159644,0.04440708,42096.0,42094.0,0.168766]
[1641749159944,0.04440708,42096.0,42095.0,0.05938073]
[1641749160144,0.04440708,42096.0,42095.0,0.51876173]
[1641749160344,0.04440708,42096.0,42095.0,0.11876173]
[1641749161005,0.04440708,42096.0,42095.0,0.059381]
[1641749161409,1.09440708,42096.0,42094.0,0.008]
[1641749161606,1.09440708,42096.0,42093.0,0.05938]
[1641749161607,0.387447,42095.0,42093.0,0.05938]
[1641749161807,0.00108,42095.0,42093.0,0.05938]
[1641749162009,0.31461932,42094.0,42093.0,0.05938]
[1641749162407,0.31461932,42094.0,42092.0,0.00041315]
[1641749162607,0.39440708,42093.0,42092.0,0.00020657]
[1641749162806,0.04440708,42093.0,42092.0,0.00020657]
[1641749163208,0.04440708,42093.0,42090.0,0.118791]
[1641749163607,0.04440708,42093.0,42090.0,0.11899758]
[1641749164407,0.06840708,42093.0,42090.0,0.12299758]
[1641749164607,0.06840708,42093.0,42090.0,0.122791]
[1641749165028,0.06840708,42093.0,42090.0,0.172791]
[1641749165431,0.024,42093.0,42090.0,0.172791]
[1641749165630,0.00108,42095.0,42091.0,0.35470561]
[1641749165833,0.00108,42095.0,42093.0,0.05938]
[1641749166431,0.01008,42095.0,42093.0,0.07038]
[1641749166634,0.00948,42095.0,42094.0,0.94667774]
[1641749166833,0.009,42095.0,42093.0,0.23913367]
[1641749167033,0.009,42095.0,42094.0,0.70363139]
[1641749167233,0.009,42095.0,42094.0,0.75148543]
[1641749167433,0.009,42095.0,42094.0,0.30363139]
[1641749167633,0.009,42095.0,42094.0,0.25363139]
[1641749168033,0.04459998,42097.0,42094.0,0.5442433]
[1641749168234,0.04459998,42097.0,42093.0,0.17813367]
[1641749168479,0.05340708,42095.0,42094.0,0.012]
[1641749169379,0.05340708,42095.0,42094.0,0.462]
[1641749169580,0.04440708,42095.0,42094.0,0.45]
[1641749170081,0.04440708,42095.0,42093.0,0.53763801]
[1641749170482,0.05340708,42095.0,42094.0,0.012]
[1641749170882,0.05281318,42095.0,42094.0,0.012]
[1641749171281,0.05281318,42095.0,42094.0,0.30273875]
[1641749171482,0.05281318,42095.0,42094.0,0.45273875]
[1641749171781,0.04381318,42095.0,42093.0,0.29689567]
[1641749171982,0.04381318,42095.0,42094.0,0.29271691]
[1641749172436,0.05281318,42095.0,42094.0,0.29271691]
[1641749172633,0.05281318,42095.0,42093.0,0.30889567]
[1641749174233,0.04381318,42095.0,42093.0,0.29689567]
[1641749174434,0.04781318,42095.0,42093.0,0.31089567]
[1641749175533,0.04781318,42095.0,42093.0,0.29689567]
[1641749175734,0.04381318,42095.0,42093.0,0.29689567]
[1641749176379,0.04681318,42095.0,42093.0,0.31089567]
[1641749176980,0.04777318,42095.0,42093.0,0.31089567]
[1641749177679,0.04477318,42095.0,42093.0,0.29689567]
[1641749178480,0.05177318,42095.0,42093.0,0.30889567]
[1641749178782,0.00796,42095.0,42093.0,0.30889567]
[1641749178982,0.04058156,42096.0,42095.0,1.42801071]
[1641749179181,0.99968139,42100.0,42096.0,0.8]
[1641749179380,0.99968139,42100.0,42097.0,0.0475]
[1641749179583,0.99968139,42100.0,42098.0,0.059367]
[1641749179840,0.52476639,42100.0,42099.0,0.3764641]
[1641749180235,9.815e-05,42101.0,42099.0,0.0475]
[1641749180437,9.815e-05,42101.0,42099.0,0.0565]
[1641749181239,0.26666199,42101.0,42099.0,0.0565]
[1641749181443,0.00126884,42100.0,42099.0,0.009]
[1641749181638,0.00126884,42100.0,42098.0,0.059367]
[1641749182138,0.00126884,42100.0,42097.0,0.059367]
[1641749182940,0.29806037,42099.0,42097.0,0.059367]
[1641749183336,0.00126884,42100.0,42098.0,0.059367]
[1641749184394,0.02026884,42100.0,42098.0,0.059367]
[1641749185192,0.36488011,42100.0,42098.0,0.059367]
[1641749185397,0.36488011,42100.0,42095.0,0.04039541]
[1641749185398,0.386367,42099.0,42095.0,0.04039541]
[1641749185593,0.00129303,42096.0,42095.0,0.04039541]
[1641749185798,1.48766003,42096.0,42095.0,0.04039541]
[1641749186093,1.93629973,42096.0,42095.0,0.04039541]
[1641749186495,1.23050163,42095.0,42092.0,0.00021065]
[1641749186694,0.386367,42094.0,42092.0,0.00021065]
[1641749186993,0.386367,42094.0,42092.0,0.00021064]
[1641749187231,0.486367,42094.0,42092.0,0.00021064]
[1641749187529,0.01229303,42096.0,42092.0,0.00021064]
[1641749187730,0.00129303,42096.0,42092.0,0.00021064]
[1641749188132,0.00129303,42096.0,42091.0,0.00020642]
[1641749188533,0.33838628,42095.0,42091.0,0.00020642]
[1641749188735,0.01429303,42096.0,42091.0,0.00020642]
[1641749188932,0.01429303,42096.0,42092.0,0.059393]
[1641749189736,0.00129303,42096.0,42092.0,0.059393]
[1641749190134,0.00129303,42096.0,42092.0,0.05959935]
[1641749190533,0.01329303,42096.0,42092.0,0.05959935]
[1641749191382,0.01329303,42096.0,42092.0,0.05959957]
[1641749191586,0.00129303,42096.0,42092.0,0.05959957]
[1641749191984,0.00048,42094.0,42092.0,0.05959957]
[1641749192387,0.00072,42094.0,42092.0,0.05959957]
[1641749192585,0.00084,42094.0,42092.0,0.05959957]
[1641749193586,0.00084,42094.0,42092.0,0.059393]
[1641749194389,0.05284,42094.0,42092.0,0.059393]
[1641749195748,0.00084,42094.0,42092.0,0.059393]
[1641749196449,0.01184,42094.0,42092.0,0.065393]
[1641749196851,0.01184,42094.0,42092.0,0.12477748]
[1641749197154,0.01184,42094.0,42093.0,0.118759]
[1641749197750,0.00084,42094.0,42093.0,0.118759]
[1641749198581,0.05184,42094.0,42093.0,0.123759]
[1641749199684,1.0,42096.0,42093.0,0.118759]
[1641749199883,1.0,42096.0,42094.0,0.059385]
[1641749200583,1.032,42096.0,42094.0,0.061385]
[1641749201687,1.0,42096.0,42094.0,0.059385]
[1641749202536,1.023,42096.0,42094.0,0.062385]
[1641749203834,0.31688951,42094.0,42092.0,0.00020657]
[1641749204134,1.0,42096.0,42092.0,0.00020657]
[1641749204536,0.015,42094.0,42091.0,0.00020657]
[1641749204737,0.015,42094.0,42091.0,0.05960057]
[1641749205637,0.27716264,42095.0,42091.0,0.059394]
[1641749206486,0.30416264,42095.0,42091.0,0.059394]
[1641749206686,0.30416264,42095.0,42091.0,0.05960057]
[1641749206888,0.30416264,42095.0,42091.0,0.00020657]
[1641749207088,0.30428264,42095.0,42091.0,0.00020657]
[1641749207688,0.27740264,42095.0,42091.0,0.00020657]
[1641749207888,0.27740264,42095.0,42091.0,0.05960157]
[1641749208087,0.27740264,42095.0,42091.0,0.00020657]
[1641749208488,0.29840264,42095.0,42091.0,0.00041314]
[1641749209089,0.29840264,42095.0,42090.0,0.059396]
[1641749209389,0.29852264,42095.0,42090.0,0.059396]
[1641749209591,0.29852264,42095.0,42091.0,0.00020657]
[1641749209592,0.29352264,42095.0,42091.0,0.00020657]
[1641749209836,0.27252264,42095.0,42091.0,0.00020657]
[1641749210435,0.29352264,42095.0,42090.0,0.11879]
[1641749211636,0.27252264,42095.0,42090.0,0.11879]
[1641749212241,0.27252264,42095.0,42088.0,0.118785]
[1641749212440,0.29352264,42095.0,42088.0,0.118785]
[1641749212642,0.29352264,42095.0,42090.0,0.059396]
[1641749213790,0.27271806,42095.0,42090.0,0.059396]
[1641749213990,0.27271806,42095.0,42092.0,0.059391]
[1641749214193,0.27271806,42095.0,42093.0,0.059095]
[1641749214592,0.02255542,42095.0,42093.0,0.059095]
[1641749214795,0.02236,42095.0,42093.0,0.059095]
[1641749215393,0.02204113,42095.0,42093.0,0.059095]
[1641749215595,1.02204113,42095.0,42093.0,0.059095]
[1641749215799,1.00004113,42095.0,42093.0,0.059095]
[1641749216598,1.07504113,42095.0,42093.0,0.059095]
[1641749217638,1.00004113,42095.0,42093.0,0.059095]
[1641749218437,1.03404113,42095.0,42093.0,0.060095]
[1641749218636,1.03404113,42095.0,42093.0,0.001]
[1641749219838,1.00004113,42095.0,42092.0,0.059391]
[1641749220538,1.04304113,42095.0,42092.0,0.059391]
[1641749220741,1.04304113,42095.0,42093.0,0.059386]
[1641749222385,1.00004113,42095.0,42093.0,0.059386]
[1641749222584,1.01704113,42095.0,42093.0,0.064386]
[1641749222784,1.01704113,42095.0,42093.0,0.35569625]
[1641749222987,1.01704113,42095.0,42094.0,0.28946103]
[1641749223686,1.00004113,42095.0,42094.0,0.28946103]
[1641749224084,0.99844813,42095.0,42094.0,0.28946103]
[1641749224284,0.99844813,42095.0,42094.0,0.33883805]
[1641749224485,1.00344813,42095.0,42094.0,0.34983805]
[1641749225738,0.99844813,42095.0,42094.0,0.33883805]
[1641749226140,0.13445697,42095.0,42094.0,0.33883805]
[1641749226538,0.14045697,42095.0,42094.0,0.35383805]
[1641749227642,0.14045697,42095.0,42094.0,0.33883805]
[1641749227843,0.13445697,42095.0,42094.0,0.33883805]
[1641749228244,0.13445697,42095.0,42094.0,0.04937702]
[1641749228494,0.13845697,42095.0,42094.0,0.3582533]
[1641749229699,0.13445697,42095.0,42094.0,0.3432533]
[1641749230500,0.14045697,42095.0,42094.0,0.3582533]
[1641749231701,0.13445697,42095.0,42094.0,0.3432533]
[1641749232433,0.13445697,42095.0,42094.0,0.04937702]
[1641749232635,0.13445697,42095.0,42094.0,0.06437702]
[1641749233734,0.13445697,42095.0,42094.0,0.04937702]
[1641749233936,0.13445697,42095.0,42094.0,0.34049793]
[1641749234638,0.13445697,42095.0,42094.0,0.35649793]
[1641749235337,0.13445697,42095.0,42094.0,0.68252498]
[1641749235538,0.13445697,42095.0,42094.0,0.39140407]
[1641749235742,0.13445697,42095.0,42094.0,0.37540407]
[1641749235984,0.13445697,42095.0,42094.0,0.04937702]
[1641749236584,0.13445697,42095.0,42094.0,0.06437702]
[1641749236984,0.13445697,42095.0,42094.0,0.35810693]
[1641749237185,0.13445697,42095.0,42094.0,0.06437702]
[1641749237784,0.13445697,42095.0,42094.0,0.04937702]
[1641749237984,0.13445697,42095.0,42094.0,0.03937702]
[1641749238585,0.13445697,42095.0,42094.0,0.05737702]
[1641749238884,0.13445697,42095.0,42094.0,0.34789466]
[1641749240338,0.13445697,42095.0,42094.0,0.32989466]
[1641749240538,0.13445697,42095.0,42094.0,0.79589466]
[1641749240946,0.13445697,42095.0,42094.0,0.85983501]
[1641749241140,0.13445697,42095.0,42094.0,0.40983501]
[1641749241342,0.13445697,42095.0,42094.0,0.11931737]
[1641749241541,0.13445697,42095.0,42094.0,0.05537702]
[1641749241745,0.13445697,42095.0,42094.0,0.03937702]
[1641749242541,0.13445697,42095.0,42094.0,0.05537702]
[1641749243142,0.13445697,42095.0,42094.0,0.20537702]
[1641749243591,0.13445697,42095.0,42094.0,0.50507843]
[1641749243991,0.13445697,42095.0,42094.0,0.48907843]
[1641749244489,0.13445697,42095.0,42094.0,0.20537702]
[1641749245088,0.13445697,42095.0,42094.0,0.50200441]
[1641749245288,0.13445697,42095.0,42094.0,0.80851302]
[1641749245689,0.13445697,42095.0,42094.0,0.87245337]
[1641749245889,0.13445697,42095.0,42094.0,0.85645337]
[1641749246490,0.13445697,42095.0,42094.0,0.87145337]
[1641749246692,0.13445697,42095.0,42094.0,0.72145337]
[1641749247938,0.13445697,42095.0,42094.0,0.40982598]
[1641749248338,0.13445697,42095.0,42094.0,0.34588563]
[1641749248538,0.13445697,42095.0,42094.0,0.35688563]
[1641749249839,0.13445697,42095.0,42094.0,0.03937702]
[1641749250040,0.06417997,42095.0,42094.0,0.98937702]
[1641749250239,0.06417997,42095.0,42094.0,0.03937702]
[1641749250441,0.00018663,42097.0,42095.0,0.8]
[1641749250739,0.00018663,42097.0,42096.0,0.059367]
[1641749251200,0.00018663,42098.0,42096.0,0.059367]
[1641749252300,0.00018664,42099.0,42096.0,0.059367]
[1641749252701,0.00018664,42099.0,42096.0,0.069367]
[1641749253402,0.30506173,42100.0,42096.0,0.069367]
[1641749253601,0.29553246,42100.0,42097.0,0.05938]
[1641749253803,0.00018664,42100.0,42098.0,0.05938]
[1641749254104,1.1,42099.0,42094.0,0.118742]
[1641749254304,1.1,42093.0,42081.0,1.3031282]
[1641749254502,0.00120237,42084.0,42081.0,0.8849282]
[1641749255141,0.67751583,42083.0,42081.0,0.8849282]
[1641749255741,0.00126595,42082.0,42081.0,0.8849282]
[1641749256141,0.00126595,42082.0,42078.0,0.178221]
[1641749256542,0.00126595,42082.0,42081.0,0.034]
[1641749257943,0.00126595,42082.0,42078.0,0.178221]
[1641749258796,0.00126595,42082.0,42078.0,0.18343519]
[1641749259397,0.00126595,42082.0,42078.0,0.00521419]
[1641749260393,0.00126595,42082.0,42078.0,0.24021419]
[1641749260593,0.00126595,42082.0,42078.0,0.24621419]
[1641749260794,0.31585303,42083.0,42078.0,0.24621419]
[1641749260995,0.31585303,42083.0,42078.0,0.24642838]
[1641749261195,0.31585303,42083.0,42078.0,0.24621419]
[1641749261401,0.31585303,42083.0,42078.0,0.00621419]
[1641749262337,0.31585303,42083.0,42078.0,0.00621045]
[1641749262537,0.31585303,42083.0,42078.0,0.00021045]
[1641749262738,0.00121007,42079.0,42078.0,0.00121045]
[1641749262940,1.07290799,42079.0,42078.0,0.00121045]
[1641749263137,1.45927499,42079.0,42078.0,0.00121045]